fUST/lending_fUST_20250220
["ID","MTS","AMOUNT","RATE_DAILY","PERIOD"]
[353792909,1740053440605,-500.0,0.0001378,2]
[353792910,1740053440615,-38237.71,0.0001378,2]
[353792911,1740053440626,-500.0,0.0001378,2]
[353792912,1740053440635,-1846.08,0.0001378,2]
[353792913,1740053440645,-500.0,0.0001378,2]
[353792914,1740053440654,-500.0,0.0001378,2]
[353792915,1740053440663,-355.16289483,0.0001378,2]
[353792916,1740053440672,-500.0,0.0001378,2]
[353792917,1740053440682,-500.0,0.0001378,2]
[353792918,1740053440691,-500.0,0.0001378,2]
[353792919,1740053440700,-1080.12,0.0001378,2]
[353792920,1740053440709,-1663.21,0.0001378,2]
[353792921,1740053440719,-500.0,0.0001378,2]
[353792922,1740053440729,-500.0,0.0001378,2]
[353792923,1740053440738,-1699.64,0.0001378,2]
[353792924,1740053440748,-500.0,0.0001378,2]
[353792925,1740053440757,-2736.38,0.0001378,2]
[353792926,1740053440766,-500.0,0.000138,2]
[353792927,1740053440775,-151.0,0.000138,2]
[353792928,1740053440785,-151.0,0.000138,2]
[353792929,1740053440795,-151.0,0.000138,2]
[353792930,1740053440804,-355.0331824,0.000138,2]
[353792931,1740053440814,-151.0,0.000138,2]
[353792932,1740053440823,-151.0,0.000138,2]
[353792933,1740053440832,-189.0,0.000138,2]
[353792934,1740053440842,-151.0,0.000138,2]
[353792935,1740053440851,-151.0,0.000138,2]
[353792936,1740053440860,-1000.0,0.000138,2]
[353792937,1740053440869,-1000.0,0.000138,2]
[353792938,1740053440879,-153.9927271,0.000138,2]
[353792939,1740053440890,-253.9326741,0.000138,2]
[353792940,1740053440899,-151.0,0.000138,2]
[353792941,1740053440908,-151.0,0.000138,2]
[353792942,1740053440917,-151.0,0.000138,2]
[353792943,1740053440926,-106032.7224217,0.00013848,2]
[353792944,1740053440936,-3031.31915013,0.0001385,15]
[353792945,1740053440945,-204385.02215897,0.00013862,2]
[353792946,1740053440954,-238.63479557,0.00013862,2]
[353792947,1740053440968,-500.0,0.00013862,2]
[353792948,1740053440981,-150.18,0.00013862,2]
[353792949,1740053440991,-150.18,0.00013862,2]
[353792950,1740053441000,-152.23191339,0.00013862,2]
[353792951,1740053441009,-500.0,0.00013862,2]
[353792952,1740053441019,-150.18,0.00013862,2]
[353792953,1740053441028,-150.18,0.00013862,2]
[353792954,1740053441038,-820.0,0.00013862,2]
[353792955,1740053441048,-529.0,0.00013862,2]
[353792956,1740053441059,-150.18,0.00013862,2]
[353792957,1740053441069,-500.0,0.00013862,2]
[353792958,1740053441078,-150.18,0.00013862,2]
[353792959,1740053441090,-500.0,0.00013863,2]
[353792960,1740053441100,-560.7222449,0.00013863,2]
[353792961,1740053441109,-500.0,0.00013863,2]
[353792962,1740053441119,-333.78,0.00013863,2]
[353792963,1740053441129,-500.0,0.00013863,2]
[353792964,1740053441138,-500.0,0.00013863,2]
[353792965,1740053441147,-1246.17,0.00013863,2]
[353792966,1740053441156,-1190.28,0.00013863,2]
[353792967,1740053441166,-500.0,0.00013863,2]
[353792968,1740053441175,-381.4081187,0.00013863,2]
[353792969,1740053441184,-500.0,0.00013863,2]
[353792970,1740053441194,-500.0,0.00013863,2]
[353792971,1740053441203,-500.0,0.00013863,2]
[353792972,1740053441213,-500.0,0.00013863,2]
[353792973,1740053441223,-1245.14,0.00013863,2]
[353792974,1740053441232,-500.0,0.00013863,2]
[353792975,1740053441242,-607.79,0.00013863,2]
[353792976,1740053441251,-500.0,0.00013863,2]
[353792977,1740053441260,-500.0,0.00013863,2]
[353792978,1740053441270,-500.0,0.00013863,2]
[353792979,1740053441279,-640.93,0.00013863,2]
[353792980,1740053441289,-500.0,0.00013863,2]
[353792981,1740053441298,-877.07,0.00013863,2]
[353792982,1740053441307,-500.0,0.00013863,2]
[353792983,1740053441317,-500.0,0.00013863,2]
[353792984,1740053441326,-500.0,0.00013863,2]
[353792985,1740053441335,-500.0,0.00013863,2]
[353792986,1740053441344,-500.0,0.00013863,2]
[353792987,1740053441353,-500.0,0.00013863,2]
[353792988,1740053441362,-500.0,0.00013863,2]
[353792989,1740053441371,-500.0,0.00013863,2]
[353792990,1740053441380,-500.0,0.00013863,2]
[353792991,1740053441389,-894.16,0.00013863,2]
[353792992,1740053441399,-500.0,0.00013863,2]
[353792993,1740053441408,-500.0,0.00013863,2]
[353792994,1740053441418,-500.0,0.00013863,2]
[353792995,1740053441428,-500.0,0.00013863,2]
[353792996,1740053441437,-500.0,0.00013863,2]
[353792997,1740053441447,-500.0,0.00013863,2]
[353792998,1740053441458,-500.0,0.00013863,2]
[353792999,1740053441468,-500.0,0.00013863,2]
[353793000,1740053441479,-500.0,0.00013863,2]
[353793001,1740053441489,-500.0,0.00013863,2]
[353793002,1740053441499,-189.17586508,0.00013863,2]
[353793003,1740053441508,-896.54,0.00013863,2]
[353793004,1740053441518,-500.0,0.00013863,2]
[353793005,1740053441527,-4718.53,0.00013863,2]
[353793006,1740053441536,-295.32,0.00013863,2]
[353793007,1740053441547,-629.18,0.00013863,2]
[353793008,1740053441556,-500.0,0.00013863,2]
[353793009,1740053441568,-3103.04,0.00013863,2]
[353793010,1740053441578,-500.0,0.00013863,2]
[353793011,1740053441589,-1635.5,0.00013863,2]
[353793012,1740053441600,-500.0,0.00013863,2]
[353793013,1740053441609,-1210.4,0.00013863,2]
[353793014,1740053441618,-500.0,0.00013863,2]
[353793015,1740053441628,-500.0,0.00013863,2]
[353793016,1740053441638,-500.0,0.00013863,2]
[353793017,1740053441647,-500.0,0.00013863,2]
[353793018,1740053441656,-549.31818159,0.00013863,2]
[353793019,1740053441666,-1040.64,0.00013863,2]
[353793020,1740053441675,-500.0,0.00013863,2]
[353793021,1740053441685,-500.0,0.00013863,2]
[353793022,1740053441695,-529.57,0.00013863,2]
[353793023,1740053441705,-500.0,0.00013863,2]
[353793024,1740053441714,-1472.16,0.00013863,2]
[353793025,1740053441723,-500.0,0.00013863,2]
[353793026,1740053441732,-500.0,0.00013863,2]
[353793027,1740053441741,-500.0,0.00013863,2]
[353793028,1740053441750,-500.0,0.00013863,2]
[353793029,1740053441759,-500.0,0.00013863,2]
[353793030,1740053441769,-500.0,0.00013863,2]
[353793031,1740053441779,-500.0,0.00013863,2]
[353793032,1740053441788,-13586.7,0.00013863,2]
[353793033,1740053441797,-500.0,0.00013863,2]
[353793034,1740053441806,-4363.02,0.00013863,2]
[353793035,1740053441815,-581.89,0.00013863,2]
[353793036,1740053441824,-209.35,0.00013863,2]
[353793037,1740053441834,-582.14,0.00013863,2]
[353793038,1740053441842,-758.7,0.00013863,2]
[353793039,1740053441851,-602.97,0.00013863,2]
[353793040,1740053441860,-1095.23,0.00013863,2]
[353793041,1740053441870,-500.0,0.00013863,2]
[353793042,1740053441879,-500.0,0.00013863,2]
[353793043,1740053441888,-651.89,0.00013863,2]
[353793044,1740053441897,-500.0,0.00013863,2]
[353793045,1740053441906,-501.79,0.00013863,2]
[353793046,1740053441915,-500.0,0.00013863,2]
[353793047,1740053441924,-500.0,0.00013863,2]
[353793048,1740053441934,-500.0,0.00013863,2]
[353793049,1740053441943,-500.0,0.00013863,2]
[353793050,1740053442061,-1029.33,0.00013863,2]
[353793051,1740053442072,-500.0,0.00013863,2]
[353793052,1740053442081,-1372.75,0.00013863,2]
[353793053,1740053442091,-500.0,0.00013863,2]
[353793054,1740053442100,-7670.5,0.00013863,2]
[353793055,1740053442110,-538.52,0.00013863,2]
[353793056,1740053442120,-3228.78,0.00013863,2]
[353793057,1740053442129,-500.0,0.00013863,2]
[353793058,1740053442139,-500.0,0.00013863,2]
[353793059,1740053442150,-3103.18,0.00013863,2]
[353793060,1740053442160,-2962.27,0.00013863,2]
[353793061,1740053442170,-207.02163708,0.00013863,2]
[353793846,1740053705666,1000.0,0.00019,120]
[353793847,1740053876979,274.755215,9.041e-05,2]
[353793857,1740054515439,1064.15054927,0.0001804,90]
[353793891,1740054632232,-300.0,0.00012651,2]
[353793892,1740054632242,-12000.0,0.00012652,2]
[353793893,1740054632254,-154.37240873,0.00013397,2]
[353793894,1740054632263,-600.0,0.00013466,2]
[353793895,1740054632273,-13275.78028017,0.00013504,2]
[353793896,1740054632283,-154.37240873,0.00013562,2]
[353793897,1740054632292,-333.5132805,0.00013585,2]
[353793899,1740054632301,-600.0,0.00013606,2]
[353793902,1740054632311,-1171.69598031,0.00013634,2]
[353793905,1740054632320,-501.68572809,0.00013673,2]
[353793908,1740054632330,-510.50744777,0.00013673,2]
[353793911,1740054632339,-500.0,0.00013673,2]
[353793914,1740054632349,-376.96554863,0.00013673,2]
[353793917,1740054632359,-268.16973202,0.00013673,2]
[353793920,1740054632369,-500.0,0.00013673,2]
[353793922,1740054632379,-500.0,0.00013673,2]
[353793924,1740054632390,-500.0,0.00013673,2]
[353793926,1740054632406,-387.20735709,0.00013673,2]
[353793929,1740054632422,-500.0,0.00013673,2]
[353793932,1740054632433,-500.416132,0.00013673,2]
[353793935,1740054632442,-500.0,0.00013673,2]
[353793938,1740054632452,-500.0,0.00013673,2]
[353793941,1740054632462,-151.84922668,0.00013673,2]
[353793943,1740054632472,-151.0,0.0001369,2]
[353793946,1740054632481,-290.26031448,0.00013697,2]
[353793948,1740054632491,-500.0,0.00013697,2]
[353793951,1740054632501,-228.3637674,0.00013697,2]
[353793954,1740054632511,-500.0,0.00013697,2]
[353793956,1740054632520,-247.64344918,0.00013697,2]
[353793959,1740054632530,-500.0,0.00013697,2]
[353793961,1740054632540,-158.42569137,0.00013697,2]
[353793962,1740054632550,-505.00807903,0.00013698,14]
[353793965,1740054632561,-500.0,0.00013698,2]
[353793968,1740054632571,-500.0,0.00013698,2]
[353793970,1740054632581,-500.0,0.00013698,2]
[353793973,1740054632591,-345.91555094,0.00013698,2]
[353793976,1740054632600,-500.0,0.00013698,2]
[353793979,1740054632610,-500.0,0.00013698,2]
[353793981,1740054632619,-438.35891527,0.00013698,2]
[353793983,1740054632629,-500.0,0.00013698,2]
[353793985,1740054632639,-500.0,0.00013698,2]
[353793987,1740054632648,-500.0,0.00013698,2]
[353793989,1740054632659,-259.32308056,0.00013698,2]
[353793991,1740054632668,-500.0,0.00013698,2]
[353793993,1740054632678,-500.0,0.00013698,2]
[353793995,1740054632686,-500.0,0.00013698,2]
[353793997,1740054632696,-500.0,0.00013698,2]
[353793999,1740054632708,-500.0,0.00013698,2]
[353794001,1740054632719,-500.0,0.00013698,2]
[353794003,1740054632728,-567.53274074,0.00013698,2]
[353794004,1740054632737,-500.0,0.00013698,2]
[353794005,1740054632747,-500.0,0.00013698,2]
[353794006,1740054632756,-596.30777638,0.00013698,2]
[353794007,1740054632766,-293.60199292,0.00013698,2]
[353794008,1740054632775,-500.0,0.00013698,2]
[353794009,1740054632787,-500.0,0.00013698,2]
[353794010,1740054632796,-500.0,0.00013698,2]
[353794011,1740054632806,-500.0,0.00013698,2]
[353794012,1740054632816,-479.0,0.00013698,2]
[353794013,1740054632825,-500.0,0.00013698,2]
[353794014,1740054632834,-500.0,0.00013698,2]
[353794015,1740054632844,-500.0,0.00013698,2]
[353794016,1740054632853,-500.0,0.00013698,2]
[353794017,1740054632862,-500.0,0.00013698,2]
[353794018,1740054632871,-528.05960842,0.00013698,2]
[353794019,1740054632880,-500.0,0.00013698,2]
[353794020,1740054632891,-500.0,0.00013698,2]
[353794021,1740054632900,-500.0,0.00013698,2]
[353794022,1740054632909,-500.0,0.00013698,2]
[353794023,1740054632919,-500.0,0.00013698,2]
[353794024,1740054632928,-338.00542148,0.00013698,2]
[353794025,1740054632938,-504.09075752,0.00013698,2]
[353794026,1740054632947,-500.0,0.00013698,2]
[353794027,1740054632957,-500.76485838,0.00013698,2]
[353794028,1740054632967,-500.0,0.00013698,2]
[353794029,1740054632976,-500.0,0.00013698,2]
[353794030,1740054632986,-500.0,0.00013698,2]
[353794031,1740054632995,-505.53283008,0.00013698,2]
[353794032,1740054633006,-500.0,0.00013698,2]
[353794033,1740054633016,-500.0,0.00013698,2]
[353794034,1740054633026,-500.0,0.00013698,2]
[353794035,1740054633036,-503.69810414,0.00013698,2]
[353794036,1740054633046,-500.0,0.00013698,2]
[353794037,1740054633056,-500.0,0.00013698,2]
[353794038,1740054633066,-500.0,0.00013698,2]
[353794039,1740054633075,-500.0,0.00013698,2]
[353794040,1740054633085,-504.56818694,0.00013698,2]
[353794041,1740054633099,-500.0,0.00013698,2]
[353794042,1740054633109,-500.0,0.00013698,2]
[353794043,1740054633119,-500.0,0.00013698,2]
[353794044,1740054633128,-500.0,0.00013698,2]
[353794045,1740054633139,-250.23317765,0.00013698,2]
[353794046,1740054633148,-500.0,0.00013698,2]
[353794047,1740054633158,-500.0,0.00013698,2]
[353794048,1740054633167,-503.93643847,0.00013698,2]
[353794049,1740054633178,-500.0,0.00013698,2]
[353794050,1740054633187,-500.0,0.00013698,2]
[353794051,1740054633197,-502.0872496,0.00013698,2]
[353794052,1740054633208,-500.0,0.00013698,2]
[353794053,1740054633218,-500.0,0.00013698,2]
[353794054,1740054633227,-500.0,0.00013698,2]
[353794055,1740054633237,-500.0,0.00013698,2]
[353794056,1740054633246,-500.0,0.00013698,2]
[353794057,1740054633256,-500.0,0.00013698,2]
[353794058,1740054633266,-500.0,0.00013698,2]
[353794059,1740054633275,-500.0,0.00013698,2]
[353794060,1740054633285,-500.00040101,0.00013698,2]
[353794061,1740054633295,-500.0,0.00013698,2]
[353794062,1740054633305,-500.0,0.00013698,2]
[353794063,1740054633316,-500.0,0.00013698,2]
[353794064,1740054633325,-500.0,0.00013698,2]
[353794065,1740054633335,-500.0,0.00013698,2]
[353794066,1740054633345,-500.0,0.00013698,2]
[353794067,1740054633355,-500.0,0.00013698,2]
[353794068,1740054633365,-500.0,0.00013698,2]
[353794069,1740054633375,-500.0,0.00013698,2]
[353794070,1740054633385,-237.61177019,0.00013698,2]
[353794071,1740054633396,-230.04346383,0.00013698,2]
[353794072,1740054633407,-500.0,0.00013698,2]
[353794073,1740054633417,-500.0,0.00013698,2]
[353794074,1740054633426,-226.90639359,0.00013698,2]
[353794075,1740054633443,-273.09360641,0.00013698,2]
[353794076,1740054633452,-500.0,0.00013698,2]
[353794077,1740054633462,-500.0,0.00013698,2]
[353794078,1740054633471,-500.0,0.00013698,2]
[353794079,1740054633481,-500.0,0.00013698,2]
[353794080,1740054633491,-500.0,0.00013698,2]
[353794081,1740054633500,-500.0,0.00013698,2]
[353794082,1740054633509,-500.0,0.00013698,2]
[353794083,1740054633519,-884.46174879,0.00013698,2]
[353794084,1740054633530,-465.51825121,0.00013698,2]
[353794085,1740054633540,-500.0,0.00013698,2]
[353794086,1740054633549,-359.75819809,0.00013698,2]
[353794087,1740054633561,-140.24180191,0.00013698,2]
[353794088,1740054633571,-500.0,0.00013698,2]
[353794089,1740054633580,-500.0,0.00013698,2]
[353794090,1740054633590,-286.27124095,0.00013698,2]
[353794091,1740054633602,-213.72875905,0.00013698,2]
[353794092,1740054633612,-1299.18,0.00013698,2]
[353794093,1740054633622,-500.0,0.00013698,2]
[353794094,1740054633631,-500.0,0.00013698,2]
[353794095,1740054633642,-500.0,0.00013698,2]
[353794096,1740054633651,-203.61265743,0.00013698,2]
[353794097,1740054633663,-296.38734257,0.00013698,2]
[353794098,1740054633673,-500.0,0.00013698,2]
[353794099,1740054633682,-500.0,0.00013698,2]
[353794100,1740054633691,-500.0,0.00013698,2]
[353794101,1740054633701,-500.0,0.00013698,2]
[353794102,1740054633711,-500.0,0.00013698,2]
[353794103,1740054633720,-517.87,0.00013698,2]
[353794104,1740054633730,-657.86,0.00013698,2]
[353794105,1740054633740,-186.99077554,0.00013698,2]
[353794106,1740054633750,-500.0,0.00013698,2]
[353794107,1740054633760,-263.93436069,0.00013698,2]
[353794108,1740054633773,-44.53848513,0.00013698,2]
[353794109,1740054633783,-500.0,0.00013698,2]
[353794110,1740054633793,-500.0,0.00013698,2]
[353794111,1740054633803,-501.71078274,0.00013698,2]
[353794112,1740054633812,-500.0,0.00013698,2]
[353794113,1740054633822,-500.0,0.00013698,2]
[353794114,1740054633831,-188.93042321,0.00013698,2]
[353794115,1740054633841,-500.0,0.00013698,2]
[353794116,1740054633851,-500.0,0.00013698,2]
[353794117,1740054633861,-500.0,0.00013698,2]
[353794118,1740054633871,-500.0,0.00013698,2]
[353794119,1740054633881,-500.0,0.00013698,2]
[353794120,1740054633892,-500.0,0.00013698,2]
[353794121,1740054633902,-500.0,0.00013698,2]
[353794122,1740054633912,-500.0,0.00013698,2]
[353794123,1740054634039,-500.0,0.00013698,2]
[353794124,1740054634049,-500.0,0.00013698,2]
[353794125,1740054634060,-500.0,0.00013698,2]
[353794126,1740054634070,-500.0,0.00013698,2]
[353794127,1740054634079,-452.62939977,0.00013698,2]
[353794128,1740054634088,-1325.73,0.00013698,2]
[353794129,1740054634097,-500.0,0.00013698,2]
[353794130,1740054634107,-500.0,0.00013698,2]
[353794131,1740054634116,-500.0,0.00013698,2]
[353794132,1740054634125,-500.0,0.00013698,2]
[353794133,1740054634138,-500.0,0.00013698,2]
[353794134,1740054634149,-500.0,0.00013698,2]
[353794135,1740054634158,-914.21,0.00013698,2]
[353794136,1740054634168,-509.16,0.00013698,2]
[353794137,1740054634177,-500.0,0.00013698,2]
[353794138,1740054634187,-500.0,0.00013698,2]
[353794139,1740054634196,-500.0,0.00013698,2]
[353794140,1740054634206,-500.0,0.00013698,2]
[353794141,1740054634216,-500.0,0.00013698,2]
[353794142,1740054634226,-500.0,0.00013698,2]
[353794143,1740054634235,-500.0,0.00013698,2]
[353794144,1740054634245,-502.61370012,0.00013698,2]
[353794145,1740054634254,-500.0,0.00013698,2]
[353794146,1740054634265,-500.0,0.00013698,2]
[353794147,1740054634275,-500.0,0.00013698,2]
[353794148,1740054634284,-500.0,0.00013698,2]
[353794149,1740054634294,-500.0,0.00013698,2]
[353794150,1740054634303,-500.0,0.00013698,2]
[353794151,1740054634313,-500.0,0.00013698,2]
[353794152,1740054634322,-625.32,0.00013698,2]
[353794153,1740054634332,-500.0,0.00013698,2]
[353794154,1740054634341,-500.0,0.00013698,2]
[353794155,1740054634351,-500.0,0.00013698,2]
[353794156,1740054634360,-500.0,0.00013698,2]
[353794157,1740054634370,-500.0,0.00013698,2]
[353794158,1740054634379,-500.0,0.00013698,2]
[353794159,1740054634389,-500.0,0.00013698,2]
[353794160,1740054634402,-500.0,0.00013698,2]
[353794161,1740054634412,-500.0,0.00013698,2]
[353794162,1740054634421,-500.0,0.00013698,2]
[353794163,1740054634431,-500.0,0.00013698,2]
[353794164,1740054634443,-500.0,0.00013698,2]
[353794165,1740054634452,-500.0,0.00013698,2]
[353794166,1740054634462,-500.0,0.00013698,2]
[353794167,1740054634472,-500.0,0.00013698,2]
[353794168,1740054634483,-500.0,0.00013698,2]
[353794169,1740054634493,-500.0,0.00013698,2]
[353794170,1740054634503,-500.0,0.00013698,2]
[353794171,1740054634513,-500.0,0.00013698,2]
[353794172,1740054634522,-500.0,0.00013698,2]
[353794173,1740054634532,-500.0,0.00013698,2]
[353794174,1740054634542,-500.0,0.00013698,2]
[353794175,1740054634552,-500.0,0.00013698,2]
[353794176,1740054634562,-947.79,0.00013698,2]
[353794177,1740054634572,-500.0,0.00013698,2]
[353794178,1740054634582,-642.93256286,0.00013698,2]
[353794179,1740054634592,-500.0,0.00013698,2]
[353794180,1740054634602,-500.0,0.00013698,2]
[353794181,1740054634611,-502.46304177,0.00013698,2]
[353794182,1740054634620,-500.0,0.00013698,2]
[353794183,1740054634630,-500.0,0.00013698,2]
[353794184,1740054634641,-500.0,0.00013698,2]
[353794185,1740054634650,-502.72494614,0.00013698,2]
[353794186,1740054634659,-500.0,0.00013698,2]
[353794187,1740054634669,-500.0,0.00013698,2]
[353794188,1740054634678,-500.0,0.00013698,2]
[353794189,1740054634689,-573.96,0.00013698,2]
[353794190,1740054634699,-500.0,0.00013698,2]
[353794191,1740054634708,-500.0,0.00013698,2]
[353794192,1740054634718,-500.0,0.00013698,2]
[353794193,1740054634727,-500.0,0.00013698,2]
[353794194,1740054634737,-500.0,0.00013698,2]
[353794195,1740054634747,-500.0,0.00013698,2]
[353794196,1740054634757,-300.97825926,0.00013698,2]
[353794197,1740054634766,-500.0,0.00013698,2]
[353794198,1740054634777,-500.0,0.00013698,2]
[353794199,1740054634786,-500.0,0.00013698,2]
[353794200,1740054634796,-500.0,0.00013698,2]
[353794201,1740054634806,-500.0,0.00013698,2]
[353794202,1740054634816,-500.0,0.00013698,2]
[353794203,1740054634826,-500.0,0.00013698,2]
[353794204,1740054634836,-500.0,0.00013698,2]
[353794205,1740054634846,-500.0,0.00013698,2]
[353794206,1740054634856,-708.73,0.00013698,2]
[353794207,1740054634865,-500.0,0.00013698,2]
[353794208,1740054634875,-500.0,0.00013698,2]
[353794209,1740054634886,-500.0,0.00013698,2]
[353794210,1740054634896,-500.0,0.00013698,2]
[353794211,1740054634905,-1232.29,0.00013698,2]
[353794212,1740054634914,-500.0,0.00013698,2]
[353794213,1740054634923,-500.0,0.00013698,2]
[353794214,1740054634933,-500.0,0.00013698,2]
[353794215,1740054634943,-500.0,0.00013698,2]
[353794216,1740054634952,-1790.04,0.00013698,2]
[353794217,1740054634961,-1790.04,0.00013698,2]
[353794218,1740054634971,-1790.04,0.00013698,2]
[353794219,1740054634980,-1790.04,0.00013698,2]
[353794220,1740054634990,-1790.04,0.00013698,2]
[353794221,1740054634999,-1679.96,0.00013698,2]
[353794222,1740054635010,-1790.04,0.00013698,2]
[353794223,1740054635019,-1790.04,0.00013698,2]
[353794224,1740054635028,-1790.04,0.00013698,2]
[353794225,1740054635037,-699.36026793,0.00013698,2]
[353794226,1740054635052,-1090.67973207,0.00013698,2]
[353794227,1740054635061,-1790.04,0.00013698,2]
[353794228,1740054635071,-1415.75235213,0.00013698,2]
[353794229,1740054635083,-374.28764787,0.00013698,2]
[353794230,1740054635092,-500.0,0.00013698,2]
[353794231,1740054635102,-1790.04,0.00013698,2]
[353794232,1740054635112,-1790.04,0.00013698,2]
[353794233,1740054635121,-1790.04,0.00013698,2]
[353794234,1740054635131,-1790.04,0.00013698,2]
[353794235,1740054635140,-500.0,0.00013698,2]
[353794236,1740054635149,-500.0,0.00013698,2]
[353794237,1740054635159,-500.0,0.00013698,2]
[353794238,1740054635169,-1294.38,0.00013698,2]
[353794239,1740054635178,-500.0,0.00013698,2]
[353794240,1740054635188,-500.0,0.00013698,2]
[353794241,1740054635198,-500.0,0.00013698,2]
[353794242,1740054635207,-500.0,0.00013698,2]
[353794243,1740054635217,-500.0,0.00013698,2]
[353794244,1740054635226,-500.0,0.00013698,2]
[353794245,1740054635236,-500.0,0.00013698,2]
[353794246,1740054635246,-500.0,0.00013698,2]
[353794247,1740054635256,-500.0,0.00013698,2]
[353794248,1740054635266,-331.44418723,0.00013698,2]
[353794249,1740054635276,-500.0,0.00013698,2]
[353794250,1740054635286,-500.0,0.00013698,2]
[353794251,1740054635296,-500.0,0.00013698,2]
[353794252,1740054635305,-500.0,0.00013698,2]
[353794253,1740054635316,-500.0,0.00013698,2]
[353794254,1740054635326,-500.0,0.00013698,2]
[353794255,1740054635335,-500.0,0.00013698,2]
[353794256,1740054635345,-500.0,0.00013698,2]
[353794257,1740054635356,-500.0,0.00013698,2]
[353794258,1740054635366,-500.0,0.00013698,2]
[353794259,1740054635376,-500.0,0.00013698,2]
[353794260,1740054635386,-294.61293921,0.00013698,2]
[353794261,1740054635396,-500.0,0.00013698,2]
[353794262,1740054635409,-500.0,0.00013698,2]
[353794263,1740054635419,-500.0,0.00013698,2]
[353794264,1740054635428,-500.0,0.00013698,2]
[353794265,1740054635438,-500.0,0.00013698,2]
[353794266,1740054635448,-500.0,0.00013698,2]
[353794267,1740054635457,-500.0,0.00013698,2]
[353794268,1740054635467,-280.35,0.00013698,2]
[353794269,1740054635478,-500.0,0.00013698,2]
[353794270,1740054635487,-3071.23,0.00013698,2]
[353794271,1740054635496,-500.04,0.00013698,2]
[353794272,1740054635506,-500.0,0.00013698,2]
[353794273,1740054635515,-500.0,0.00013698,2]
[353794274,1740054635524,-500.0,0.00013698,2]
[353794275,1740054635534,-500.0,0.00013698,2]
[353794276,1740054635544,-500.0,0.00013698,2]
[353794277,1740054635553,-500.0,0.00013698,2]
[353794278,1740054635563,-503.50200437,0.00013698,2]
[353794279,1740054635572,-500.0,0.00013698,2]
[353794280,1740054635582,-1529.74,0.00013698,2]
[353794281,1740054635591,-500.0,0.00013698,2]
[353794282,1740054635601,-574.1,0.00013698,2]
[353794283,1740054635611,-500.0,0.00013698,2]
[353794284,1740054635620,-500.0,0.00013698,2]
[353794285,1740054635629,-500.0,0.00013698,2]
[353794286,1740054635640,-503.43633386,0.00013698,2]
[353794287,1740054635649,-500.0,0.00013698,2]
[353794288,1740054635659,-500.0,0.00013698,2]
[353794289,1740054635668,-500.0,0.00013698,2]
[353794290,1740054635679,-512.28135351,0.00013698,2]
[353794291,1740054635688,-500.0,0.00013698,2]
[353794292,1740054635698,-500.0,0.00013698,2]
[353794293,1740054635708,-500.0,0.00013698,2]
[353794294,1740054635718,-500.0,0.00013698,2]
[353794295,1740054635728,-500.0,0.00013698,2]
[353794296,1740054635737,-500.0,0.00013698,2]
[353794297,1740054635746,-500.0,0.00013698,2]